[Event "30th NATO Chess-ch 2019"]
[Site "Berlin"]
[Date "2019.09.17"]
[Round "2.14"]
[White "Mouroutis, Konstantinos"]
[Black "Nilsson, Erik"]
[Result "1-0"]
[ECO "D00"]
[WhiteElo "2181"]
[BlackElo "2022"]
[Annotator "ChessBase"]
[PlyCount "67"]
[EventDate "2019.09.16"]
[EventType "swiss"]
[EventCountry "GER"]
[SourceTitle "playchess.com"]
[Source "ChessBase"]
[SourceQuality "1"]
[TimeControl "40/7200:1800"]

1. d4 {[%emt 1:59:50]} d5 {[%emt 1:59:52]} 2. Bg5 {[%emt 1:59:52]} f6 {[%emt 1:58:58]} 3. Bh4 {[%emt 1:59:16]} Nh6 {[%emt 1:58:08]} 4. f3 {[%emt 1:58:08]} c5 {[%emt 1:55:38]} 5. dxc5 {[%emt 1:49:27]} e5 {[%emt 1:54:51]} 6. e4 {[%emt 1:54:51]} Be6 {[%emt 1:43:35]} 7. exd5 {[%emt 1:52:18]} Qxd5 {[%emt 1:51:58]} 8. Qxd5 {[%emt 1:41:09]} Bxd5 {[%emt 1:41:09]} 9. Nc3 {[%emt 1:37:06]} Be6 {[%emt 1:50:53]} 10. Bf2 {[%emt 1:50:53]} a6 {[%emt 1:46:08]} 11. O-O-O {[%emt 1:46:08]} Nd7 {[%emt 1:33:25]} 12. Ne4 {[%emt 1:18:33]} Rc8 {[%emt 1:44:10]} 13. Rd6 {[%emt 1:15:33]} Ke7 {[%emt 1:15:33]} 14. Rd1 {[%emt 1:02:20]} Nf7 {[%emt 1:34:09]} 15. b4 {[%emt 0:54:12]} Bxa2 {[%emt 0:54:12]} 16. c4 {[%emt 1:32:21]} Bb3 {[%emt 1:31:31]} 17. Rd3 {[%emt 1:31:31]} Ba4 {[%emt 1:29:50]} 18. Nc3 {[%emt 0:44:11]} Bc6 {[%emt 0:44:11]} 19. b5 {[%emt 1:28:52]} axb5 {[%emt 1:26:46]} 20. cxb5 {[%emt 0:42:52]} e4 {[%emt 1:26:01]} 21. Rd2 {[%emt 1:26:01]} Bxb5 {[%emt 1:23:46]} 22. Bxb5 {[%emt 1:23:46]} Nxc5 {[%emt 1:23:35]} 23. Kb2 {[%emt 0:26:29]} Nd6 {[%emt 1:23:09]} 24. Bxc5 Rxc5 {[%emt 1:23:07]} 25. Rxd6 {[%emt 0:24:19]} Kxd6 {[%emt 1:22:06]} 26. Nxe4+ {[%emt 0:24:10]} Kd5 {[%emt 0:24:10]} 27. Nxc5 {[%emt 0:23:56]} Bxc5 {[%emt 0:23:56]} 28. Ne2 {[%emt 0:23:40]} Be3 {[%emt 0:23:40]} 29. Bd3 {[%emt 1:20:51]} g6 {[%emt 1:20:08]} 30. Rd1 {[%emt 0:22:00]} Kc5 {[%emt 1:19:30]} 31. Be4 {[%emt 1:19:30]} b5 {[%emt 1:19:14]} 32. Rd3 {[%emt 0:18:57]} Bf2 {[%emt 0:18:57]} 33. Kb3 {[%emt 1:19:06]} f5 {[%emt 0:18:23]} 34. Rd6 1-0

[Event "30th NATO Chess-ch 2019"]
[Site "Berlin"]
[Date "2019.09.17"]
[Round "2.15"]
[White "Tucker, David S"]
[Black "Watters, Chase"]
[Result "0-1"]
[ECO "B11"]
[WhiteElo "1997"]
[BlackElo "2179"]
[Annotator "NA"]
[PlyCount "78"]
[EventDate "2019.09.16"]
[EventType "swiss"]
[EventCountry "GER"]
[SourceTitle "playchess.com"]
[Source "ChessBase"]
[SourceQuality "1"]
[TimeControl "40/7200:1800"]

1. e4 {[%emt 1:59:57]} c6 {[%emt 1:59:31]} 2. Nc3 {[%emt 1:59:31]} d5 {[%emt 1:59:26]} 3. Nf3 {[%emt 1:59:26]} Nf6 {[%emt 1:57:46]} 4. e5 {[%emt 1:57:46]} Ne4 {[%emt 1:55:49]} 5. Be2 {[%emt 1:56:29]} Bf5 {[%emt 1:51:54]} 6. Nh4 {[%emt 1:49:47]} e6 {[%emt 1:49:47]} 7. Nxf5 {[%emt 1:45:18]} exf5 {[%emt 1:50:24]} 8. O-O {[%emt 1:50:24]} Nc5 {[%emt 1:48:32]} 9. d4 {[%emt 1:35:42]} Ne6 {[%emt 1:35:42]} 10. Bf3 {[%emt 1:33:18]} g6 {[%emt 1:42:40]} 11. b3 {[%emt 1:30:36]} Bg7 {[%emt 1:30:36]} 12. a4 {[%emt 1:24:29]} O-O $11 {[%emt 1:24:29]} 13. Re1 {[%emt 1:20:03]} Na6 {[%emt 1:20:03]} 14. Ba3 {[%emt 1:16:42]} Re8 {[%emt 1:38:00]} 15. Qd2 {[%emt 1:11:01]} Qh4 {[%emt 1:11:01]} 16. Rad1 {[%emt 1:06:32]} Ng5 {[%emt 1:22:26]} 17. Qd3 {[%emt 1:04:31]} Ne4 {[%emt 1:21:26]} 18. g3 {[%emt 1:21:26]} Qd8 {[%emt 0:57:11]} 19. Bg2 {[%emt 0:56:17]} Nc7 {[%emt 1:17:49]} 20. f3 {[%emt 1:17:49]} Nxc3 {[%emt 1:16:44]} 21. Qxc3 {[%emt 1:16:44]} Ne6 {[%emt 1:16:29]} 22. Qd2 {[%emt 0:51:47]} f4 {[%emt 1:14:50]} 23. c4 {[%emt 0:46:12]} Bh6 {[%emt 1:13:05]} 24. Bd6 {[%emt 0:41:40]} Qg5 {[%emt 1:11:52]} 25. g4 {[%emt 1:11:52]} Rac8 {[%emt 1:01:02]} 26. c5 {[%emt 0:38:54]} Qh4 {[%emt 0:38:54]} 27. b4 {[%emt 0:31:59]} Bg5 {[%emt 0:31:59]} 28. Re2 {[%emt 0:29:35]} h5 {[%emt 0:29:35]} 29. h3 {[%emt 0:54:12]} hxg4 {[%emt 0:28:08]} 30. hxg4 {[%emt 0:27:54]} Kg7 {[%emt 0:52:56]} 31. Qe1 {[%emt 0:17:55]} Qh6 {[%emt 0:49:16]} 32. Rb2 {[%emt 0:14:52]} Rh8 {[%emt 0:46:15]} 33. Qc3 {[%emt 0:14:06]} Qh2+ {[%emt 0:41:52]} 34. Kf1 {[%emt 0:41:52]} Rh7 {[%emt 0:13:54]} 35. b5 {[%emt 0:40:05]} Rch8 {[%emt 0:13:43]} 36. bxc6 {[%emt 0:13:25]} bxc6 {[%emt 0:39:39]} 37. Rb8 {[%emt 0:13:12]} Qh1+ {[%emt 0:36:51]} 38. Kf2 {[%emt 0:36:51]} Qxd1 {[%emt 0:35:51]} 39. Rxh8 {[%emt 0:11:04]} Bh4# {--- Rxh8#} 0-1

[Event "30th NATO Chess-ch 2019"]
[Site "Berlin"]
[Date "2019.09.17"]
[Round "2.16"]
[White "Pavlidou, Ekaterini"]
[Black "Parker, Glen D"]
[Result "1-0"]
[ECO "D06"]
[WhiteElo "2178"]
[BlackElo "2014"]
[Annotator "NA"]
[PlyCount "45"]
[EventDate "2019.09.16"]
[EventType "swiss"]
[EventCountry "GER"]
[SourceTitle "playchess.com"]
[Source "ChessBase"]
[SourceQuality "1"]
[TimeControl "40/7200:1800"]

1. d4 {[%emt 1:59:42]} Nf6 {[%emt 1:59:42]} 2. c4 {[%emt 1:59:32]} d5 {[%emt 1:59:22]} 3. cxd5 {[%emt 1:58:43]} Qxd5 {[%emt 1:56:56]} 4. Nc3 {[%emt 1:58:03]} Qa5 {[%emt 1:49:55]} 5. Nf3 {[%emt 1:55:27]} c6 {[%emt 1:48:07]} 6. Bd2 {[%emt 1:51:44]} e6 {[%emt 1:35:20]} 7. e4 {[%emt 1:48:31]} Bb4 {[%emt 1:48:31]} 8. Bd3 {[%emt 1:46:04]} Nbd7 {[%emt 1:46:04]} 9. O-O $16 {[%emt 1:42:51]} Bxc3 {[%emt 1:10:27]} 10. Bxc3 {[%emt 1:37:03]} Qh5 {[%emt 1:04:46]} 11. Bb4 {[%emt 1:31:58]} e5 {[%emt 0:56:34]} 12. Be2 {[%emt 0:56:34]} exd4 {[%emt 0:49:06]} 13. Nxd4 {[%emt 1:14:14]} Qe5 {[%emt 0:48:22]} 14. f4 {[%emt 1:08:38]} Qc7 {[%emt 1:08:38]} 15. e5 {[%emt 1:01:34]} Nd5 {[%emt 0:27:53]} 16. Bd6 {[%emt 0:27:53]} Qb6 {[%emt 0:27:44]} 17. Kh1 {[%emt 0:53:19]} Ne3 {[%emt 0:25:57]} 18. Qd2 {[%emt 0:25:57]} Nxf1 {[%emt 0:25:35]} 19. Rxf1 {[%emt 0:25:35]} Nc5 {[%emt 0:51:58]} 20. f5 {[%emt 0:25:17]} Bd7 {[%emt 0:50:23]} 21. Qg5 {[%emt 0:21:44]} f6 {[%emt 0:48:52]} 22. Bh5+ {[%emt 0:21:12]} Kd8 {[%emt 0:20:04]} 23. Qxg7 {[%emt 0:20:04]} 1-0

[Event "30th NATO Chess-ch 2019"]
[Site "Berlin"]
[Date "2019.09.17"]
[Round "2.17"]
[White "Almonti, Alessandro"]
[Black "Kedzierski, Slawomir"]
[Result "0-1"]
[ECO "E01"]
[WhiteElo "1976"]
[BlackElo "2163"]
[Annotator "NA"]
[PlyCount "78"]
[EventDate "2019.09.16"]
[EventType "swiss"]
[EventCountry "GER"]
[SourceTitle "playchess.com"]
[Source "ChessBase"]
[SourceQuality "1"]
[TimeControl "40/7200:1800"]

1. Nf3 {[%emt 2:00:00]} d5 {[%emt 1:59:55]} 2. c4 {[%emt 1:59:04]} c6 {[%emt 1:58:05]} 3. g3 {[%emt 1:58:05]} Nf6 {[%emt 1:55:35]} 4. Bg2 {[%emt 1:55:32]} e6 {[%emt 1:53:47]} 5. b3 {[%emt 1:53:47]} Nbd7 {[%emt 1:53:38]} 6. Bb2 {[%emt 1:53:20]} Bd6 {[%emt 1:53:20]} 7. d4 {[%emt 1:52:32]} O-O {[%emt 1:50:58]} 8. O-O {[%emt 1:50:58]} b6 {[%emt 1:52:15]} 9. Nbd2 {[%emt 1:50:24]} Bb7 {[%emt 1:43:35]} 10. Ne5 {[%emt 1:49:49]} Qc7 {[%emt 1:48:17]} 11. Nxd7 {[%emt 1:48:17]} Qxd7 $14 {[%emt 1:44:14]} 12. e4 {[%emt 1:44:14]} dxe4 {[%emt 1:43:54]} 13. Nxe4 {[%emt 1:34:02]} Nxe4 {[%emt 1:41:47]} 14. Bxe4 {[%emt 1:41:47]} Rfd8 {[%emt 1:31:46]} 15. Qc2 {[%emt 1:31:46]} h6 {[%emt 1:29:06]} 16. Rad1 {[%emt 1:26:51]} Rac8 {[%emt 1:24:25]} 17. Qb1 {[%emt 1:24:25]} Rc7 {[%emt 1:06:33]} 18. Rfe1 {[%emt 0:54:14]} Qc8 {[%emt 0:54:14]} 19. Rd3 {[%emt 1:06:40]} Rcd7 {[%emt 0:47:32]} 20. Red1 {[%emt 1:00:06]} Be7 {[%emt 0:45:58]} 21. Qc2 {[%emt 0:58:27]} Bf6 {[%emt 0:48:23]} 22. c5 {[%emt 0:48:23]} Be7 {[%emt 0:30:50]} 23. b4 {[%emt 0:39:44]} a5 {[%emt 0:32:30]} 24. a3 {[%emt 0:28:58]} Ba6 {[%emt 0:28:58]} 25. R3d2 {[%emt 0:28:33]} axb4 {[%emt 0:28:33]} 26. axb4 {[%emt 0:28:23]} Bb5 {[%emt 0:28:23]} 27. f4 {[%emt 0:24:10]} Ra7 {[%emt 0:28:54]} 28. Ra1 {[%emt 0:23:51]} Qb7 {[%emt 0:23:51]} 29. Rxa7 {[%emt 0:23:29]} Qxa7 {[%emt 0:26:32]} 30. Qc3 {[%emt 0:26:32]} Bf6 {[%emt 0:24:33]} 31. Qc1 {[%emt 0:16:43]} Qa6 {[%emt 0:16:43]} 32. Qc3 {[%emt 0:22:10]} Bc4 {[%emt 0:15:04]} 33. Qe3 {[%emt 0:15:04]} Bd5 {[%emt 0:14:38]} 34. Rd1 {[%emt 0:14:38]} Qa4 {[%emt 0:12:45]} 35. Ra1 {[%emt 0:01:41]} Qxb4 {[%emt 0:01:41]} 36. Bc3 {[%emt 0:01:26]} Qb5 {[%emt 0:01:26]} 37. Bd3 {[%emt 0:01:13]} Qb3 {[%emt 0:02:19]} 38. Rb1 {[%emt 0:00:56]} Qa2 {[%emt 0:00:56]} 39. Ra1 {[%emt 0:00:45]} Qg2# {[%emt 0:00:45]} 0-1

[Event "30th NATO Chess-ch 2019"]
[Site "Berlin"]
[Date "2019.09.17"]
[Round "2.18"]
[White "Bohn, Ulrich"]
[Black "Farrell, John"]
[Result "1-0"]
[ECO "D02"]
[WhiteElo "2157"]
[BlackElo "1985"]
[Annotator "NA"]
[PlyCount "97"]
[EventDate "2019.09.16"]
[EventType "swiss"]
[EventCountry "GER"]
[SourceTitle "playchess.com"]
[Source "ChessBase"]
[SourceQuality "1"]
[TimeControl "40/7200:1800"]

1. d4 {[%emt 2:00:00]} d5 {[%emt 1:59:39]} 2. Bf4 {[%emt 1:59:39]} Nf6 {[%emt 1:59:29]} 3. e3 {[%emt 1:59:29]} c5 {[%emt 1:58:33]} 4. c3 {[%emt 1:57:55]} Nc6 {[%emt 1:57:55]} 5. Nd2 {[%emt 1:57:48]} e6 {[%emt 1:58:46]} 6. Ngf3 {[%emt 1:57:34]} Bd6 {[%emt 1:57:34]} 7. Bg3 {[%emt 1:58:23]} O-O {[%emt 1:53:29]} 8. Bd3 {[%emt 1:53:29]} Qe7 {[%emt 1:47:45]} 9. Ne5 {[%emt 1:56:11] D02: 1 d4 d5 2 Nf3 sidelines, including 2...Nf6 3 g3 and 2...Nf6 3 Bf4} Qc7 {[%emt 1:56:11]} (9... Nd7 10. Nxd7 Qxd7 11. O-O b6 12. Bxd6 Qxd6 13. f4 f5 14. Nf3 c4 15. Bc2 b5 16. a3 a5 17. g4 Bd7 {½-½ (69) Grischuk,A (2781)-Hammer,J (2677) Stavanger 2015}) 10. f4 {[%emt 1:52:16]} Ne8 {[%emt 1:42:49]} 11. Ndf3 $146 {[%emt 1:24:40]} ({Predecessor:} 11. Qc2 g6 12. O-O f6 13. Nxc6 bxc6 14. Nf3 f5 15. Ne5 Nf6 16. Bh4 {½-½ (47) Kargl,K (2241)-Stocker,A (2179) Austria 2000}) 11... f5 {[%emt 1:37:32]} 12. Bh4 {[%emt 1:19:12]} Be7 {[%emt 1:32:04]} 13. Bxe7 {[%emt 1:17:17]} Qxe7 {[%emt 1:28:55]} 14. Qe2 {[%emt 1:28:55]} Nf6 {[%emt 1:14:23]} 15. Rg1 {[%emt 1:27:08]} Ne4 {[%emt 1:16:24]} 16. O-O-O {[%emt 1:16:24]} Bd7 {[%emt 1:12:56]} 17. g4 {[%emt 1:12:56]} Be8 {[%emt 1:09:06]} 18. gxf5 {[%emt 1:09:06]} exf5 {[%emt 1:08:35]} 19. Bxe4 {[%emt 0:43:22]} dxe4 {[%emt 1:07:40]} 20. Nxc6 {[%emt 0:43:06]} Bxc6 {[%emt 1:05:50]} 21. Ne5 {[%emt 0:43:01]} cxd4 {[%emt 0:43:01]} 22. Qc4+ {[%emt 0:40:22]} Kh8 {[%emt 0:40:22]} 23. Rg3 {[%emt 1:03:33]} Be8 {[%emt 1:01:31]} 24. Qxd4 $16 {[%emt 0:36:23]} ({Stronger than} 24. cxd4 Bh5 $17) 24... Qf6 {[%emt 0:51:22]} 25. Qc5 {[%emt 0:25:06]} Rg8 {[%emt 0:25:06]} 26. Qc7 {[%emt 0:41:52]} Qb6 {[%emt 0:28:37]} 27. Qe7 {[%emt 0:07:27]} Qb5 {[%emt 0:07:27]} 28. Rdg1 {[%emt 0:06:04]} g6 {[%emt 0:07:50]} 29. Rh3 {[%emt 0:07:50]} Rg7 {[%emt 0:04:40]} 30. Qf8+ {[%emt 0:04:32]} Rg8 {[%emt 0:06:56]} 31. Qf6+ {[%emt 0:04:30]} Rg7 {[%emt 0:04:30]} 32. Rhg3 {[%emt 0:01:55]} Qb6 {[%emt 0:04:13]} 33. Qf8+ {[%emt 0:04:13]} Rg8 {[%emt 0:01:30]} 34. Qe7 {[%emt 0:04:03]} Qd8 {[%emt 0:00:38]} 35. Qe6 {[%emt 0:00:25]} Qb6 36. Qxb6 axb6 {[%emt 0:01:29]} 37. Kb1 {[%emt 0:01:25]} Bc6 {[%emt 0:01:25]} 38. Rd1 {[%emt 0:00:07]} Rad8 39. Nf7+ Kg7 40. Nxd8 Kf6 41. Nxc6 bxc6 {[%emt 0:00:44]} 42. Rd6+ {[%emt 0:00:44]} Ke7 43. Rxc6 {[%emt 0:00:42]} Rb8 {[%emt 0:00:05]} 44. Rg1 {[%emt 0:00:04]} Kd7 45. Rc4 {[%emt 0:00:31]} b5 {[%emt 0:00:31]} 46. Rd1+ {[%emt 0:00:30]} Ke6 {[%emt 0:00:30]} 47. Rc6+ {[%emt 0:00:02]} Ke7 {[%emt 0:00:29]} 48. Rc7+ {[%emt 0:00:01]} Ke6 {[%emt 0:00:27]} 49. Rxh7 {[%emt 0:29:59]} 1-0

[Event "30th NATO Chess-ch 2019"]
[Site "Berlin"]
[Date "2019.09.17"]
[Round "2.19"]
[White "Hater, David"]
[Black "Tommasini, Enzo"]
[Result "1/2-1/2"]
[ECO "C01"]
[WhiteElo "1973"]
[BlackElo "2147"]
[Annotator "ChessBase"]
[PlyCount "80"]
[EventDate "2019.09.16"]
[EventType "swiss"]
[EventCountry "GER"]
[SourceTitle "playchess.com"]
[Source "ChessBase"]
[SourceQuality "1"]
[TimeControl "40/7200:1800"]

1. e4 {[%emt 2:00:00]} e6 {[%emt 1:56:44]} 2. d4 {[%emt 1:59:46]} d5 {[%emt 1:56:25]} 3. exd5 {[%emt 1:56:25]} exd5 {[%emt 1:59:38]} 4. Bf4 {[%emt 1:56:16]} Bd6 {[%emt 1:59:27]} 5. Bxd6 {[%emt 1:59:04]} Qxd6 {[%emt 1:54:02]} 6. c3 {[%emt 1:58:07]} Ne7 {[%emt 1:53:09]} 7. Bd3 {[%emt 1:55:15]} O-O {[%emt 1:46:30]} 8. Qc2 {[%emt 1:46:30]} g6 {[%emt 1:44:44]} 9. Nf3 {[%emt 1:44:44]} Nbc6 {[%emt 1:51:13]} 10. O-O {[%emt 1:50:27]} Bg4 {[%emt 1:50:27]} 11. Nbd2 {[%emt 1:50:02]} Rae8 {[%emt 1:39:33]} 12. Rfe1 {[%emt 1:39:33]} f6 {[%emt 1:36:42]} 13. Re3 {[%emt 1:35:02]} Bf5 {[%emt 1:35:02]} 14. Rae1 {[%emt 1:36:27]} Qd7 {[%emt 1:32:36]} 15. Nf1 {[%emt 1:35:39]} Bxd3 {[%emt 1:35:16]} 16. Qxd3 {[%emt 1:28:20]} Nc8 {[%emt 1:28:20]} 17. Rxe8 {[%emt 1:25:11]} Rxe8 {[%emt 1:32:43]} 18. Rxe8+ {[%emt 1:25:03]} Qxe8 {[%emt 1:32:37]} 19. Qe3 {[%emt 1:32:37]} Qe4 {[%emt 1:24:55]} 20. N3d2 {[%emt 1:29:26]} Qe7 {[%emt 1:20:15]} 21. Nb3 {[%emt 1:25:31]} b6 {[%emt 1:13:45]} 22. f3 {[%emt 1:11:10]} Nd6 {[%emt 1:11:10]} 23. Qxe7 {[%emt 1:10:21]} Nxe7 {[%emt 1:21:33]} 24. Ne3 {[%emt 1:21:33]} Nc4 {[%emt 1:13:48]} 25. Nxc4 {[%emt 1:08:34]} dxc4 {[%emt 1:13:46]} 26. Nd2 {[%emt 1:13:46]} b5 {[%emt 1:13:38]} 27. Kf2 {[%emt 1:04:16]} Kf7 {[%emt 1:12:14]} 28. a4 {[%emt 0:59:29]} c6 {[%emt 1:11:24]} 29. axb5 {[%emt 0:59:07]} cxb5 {[%emt 1:11:22]} 30. Ne4 {[%emt 1:11:22]} Ke6 {[%emt 1:10:51]} 31. Nc5+ {[%emt 0:57:40]} Kd5 {[%emt 0:57:40]} 32. Ne4 {[%emt 0:57:17]} Ke6 {[%emt 0:57:17]} 33. Nc5+ {[%emt 0:57:08]} Kd5 {[%emt 1:06:59]} 34. Ne4 {[%emt 0:57:03]} Ng8 {[%emt 0:57:03]} 35. g4 {[%emt 1:06:38]} a5 {[%emt 0:55:04]} 36. Ke3 {[%emt 0:54:29]} b4 {[%emt 0:54:29]} 37. Kd2 {[%emt 0:51:02]} f5 {[%emt 0:51:02]} 38. gxf5 {[%emt 0:47:18]} gxf5 {[%emt 1:04:51]} 39. Ng3 {[%emt 1:04:51]} Ne7 {[%emt 0:46:51]} 40. Nh5 {[%emt 0:46:25]} Kd6 {[%emt 0:46:25]} 1/2-1/2

[Event "30th NATO Chess-ch 2019"]
[Site "Berlin"]
[Date "2019.09.17"]
[Round "2.20"]
[White "Graczyk, Damian"]
[Black "Steffers, Hendrik"]
[Result "1-0"]
[ECO "E17"]
[WhiteElo "2133"]
[BlackElo "1965"]
[Annotator "NA"]
[PlyCount "69"]
[EventDate "2019.09.16"]
[EventType "swiss"]
[EventCountry "GER"]
[SourceTitle "playchess.com"]
[Source "ChessBase"]
[SourceQuality "1"]
[TimeControl "40/7200:1800"]

1. d4 {[%emt 2:17:04]} d5 {[%emt 1:59:53]} 2. Nf3 {[%emt 1:59:35]} Nf6 {[%emt 1:59:35]} 3. c4 {[%emt 1:59:24]} e6 {[%emt 1:59:24]} 4. Nbd2 {[%emt 1:57:51]} Be7 {[%emt 1:58:54]} 5. g3 {[%emt 1:58:47]} O-O {[%emt 1:54:39]} 6. Bg2 {[%emt 1:54:39]} Nbd7 {[%emt 1:53:35]} 7. O-O {[%emt 1:58:35]} b6 {[%emt 1:50:47]} 8. b3 {[%emt 1:50:47]} Bb7 {[%emt 1:49:47]} 9. Bb2 {[%emt 1:57:59]} h6 {[%emt 1:45:39]} 10. Rc1 {[%emt 1:45:39]} Rc8 {[%emt 1:42:44]} 11. Ne5 {[%emt 1:42:44]} c5 {[%emt 1:35:18]} 12. cxd5 {[%emt 1:49:29]} exd5 {[%emt 1:49:29]} 13. Nxd7 {[%emt 1:48:00]} Qxd7 {[%emt 1:26:33]} 14. Nf3 {[%emt 1:47:19]} Ne4 $11 {[%emt 1:19:50]} 15. dxc5 {[%emt 1:43:45]} bxc5 {[%emt 1:16:53]} 16. Ne5 {[%emt 1:16:53]} Qe6 {[%emt 1:14:49]} 17. Qc2 {[%emt 1:39:34]} Bf6 {[%emt 1:11:38]} 18. Nd3 {[%emt 1:39:13]} c4 {[%emt 1:02:04]} 19. Nf4 {[%emt 1:02:04]} Qb6 {[%emt 0:57:56]} 20. Bxf6 {[%emt 0:57:56]} Nxf6 {[%emt 0:55:30]} 21. bxc4 {[%emt 1:32:00]} Rxc4 {[%emt 1:32:00]} 22. Qf5 {[%emt 0:54:02]} Rfc8 {[%emt 1:27:14]} 23. Rb1 {[%emt 1:23:43]} Qc6 {[%emt 0:43:11]} 24. Rfd1 {[%emt 0:43:11]} Qa6 {[%emt 1:20:53]} 25. e3 {[%emt 0:40:56]} Rc2 {[%emt 0:34:39]} 26. Nd3 {[%emt 1:01:52]} R2c4 {[%emt 1:01:52]} 27. Ne5 {[%emt 1:00:10]} R4c7 {[%emt 0:27:21]} 28. Bf1 {[%emt 0:56:42]} Qxa2 29. Rxb7 {[%emt 0:55:52]} Qc2 {[%emt 0:25:12]} 30. Qxc2 {[%emt 0:55:10]} Rxc2 {[%emt 0:25:10]} 31. Rxa7 {[%emt 0:54:36]} Rf8 {[%emt 0:23:46]} 32. Nd7 {[%emt 0:54:10]} Nxd7 {[%emt 0:22:58]} 33. Rxd7 {[%emt 0:22:58]} Rb8 {[%emt 0:22:47]} 34. R7xd5 {[%emt 0:53:36]} Rbb2 {[%emt 0:53:36]} 35. Bd3 {[%emt 0:53:11]} 1-0

[Event "30th NATO Chess-ch 2019"]
[Site "Berlin"]
[Date "2019.09.17"]
[Round "2.21"]
[White "Violini, Paolo"]
[Black "Kersic, Matej"]
[Result "1/2-1/2"]
[ECO "D11"]
[WhiteElo "1963"]
[BlackElo "2122"]
[Annotator "NA"]
[PlyCount "67"]
[EventDate "2019.09.16"]
[EventType "swiss"]
[EventCountry "GER"]
[SourceTitle "playchess.com"]
[Source "ChessBase"]
[SourceQuality "1"]
[TimeControl "40/7200:1800"]

1. d4 {[%emt 1:57:09]} d5 {[%emt 1:59:50]} 2. Nf3 {[%emt 1:59:50]} Nf6 {[%emt 1:56:55]} 3. g3 {[%emt 1:55:58]} c6 {[%emt 1:57:09]} 4. Bg2 {[%emt 1:57:09]} Bf5 {[%emt 1:55:20]} 5. c4 {[%emt 1:56:02]} e6 {[%emt 1:54:07]} 6. Nc3 {[%emt 1:54:07]} Nbd7 {[%emt 1:53:17]} 7. Qb3 {[%emt 1:52:23]} Qb6 {[%emt 1:52:23]} 8. c5 {[%emt 1:51:31]} Qxb3 {[%emt 1:50:31]} 9. axb3 {[%emt 1:50:31]} e5 {[%emt 1:50:26]} 10. dxe5 {[%emt 1:50:26]} Ng4 {[%emt 1:50:02]} 11. Nd4 {[%emt 1:38:10]} Be6 {[%emt 1:38:10]} 12. Bh3 {[%emt 1:46:48]} Ngxe5 $16 {[%emt 1:31:17]} 13. Bxe6 {[%emt 1:27:40]} fxe6 {[%emt 1:33:02]} 14. Nxe6 {[%emt 1:27:18]} Ke7 {[%emt 1:27:18]} 15. Nxf8 {[%emt 1:31:02]} Rhxf8 {[%emt 1:30:39]} 16. Be3 {[%emt 1:30:39]} Kf7 {[%emt 1:21:08]} 17. O-O {[%emt 1:13:21]} Rfe8 {[%emt 1:16:14]} 18. Rfe1 {[%emt 1:09:05]} a6 {[%emt 1:10:25]} 19. Kg2 {[%emt 1:04:39]} Re6 {[%emt 1:05:49]} 20. Bd4 {[%emt 1:05:49]} Rae8 {[%emt 0:59:06]} 21. Rad1 {[%emt 0:47:05]} Nf6 {[%emt 0:47:05]} 22. e3 {[%emt 0:43:43]} Ned7 {[%emt 0:43:43]} 23. Ra1 {[%emt 0:42:16]} Ne4 {[%emt 0:42:16]} 24. Nxe4 {[%emt 0:52:52]} Rxe4 {[%emt 0:52:47]} 25. Ra4 {[%emt 0:40:01]} R4e7 {[%emt 0:40:01]} 26. Rc1 {[%emt 0:45:42]} Nf8 {[%emt 0:35:10]} 27. f4 {[%emt 0:34:22]} Nd7 {[%emt 0:34:22]} 28. Kf3 {[%emt 0:32:15]} Nf6 {[%emt 0:32:15]} 29. Be5 {[%emt 0:26:08]} Ne4 {[%emt 0:31:56]} 30. Rc2 {[%emt 0:31:56]} h5 {[%emt 0:24:25]} 31. h3 {[%emt 0:24:49]} Nf6 {[%emt 0:21:39]} 32. Re2 {[%emt 0:22:31]} Ne4 {[%emt 0:21:21]} 33. Rc2 {[%emt 0:22:17]} Nf6 {[%emt 0:21:15]} 34. Re2 {[%emt 0:21:15]} 1/2-1/2